Workbook

Sheet Hinweise
A1: Geschäftsgang 8
A3: Voraussetzungen
A4: Um den Geschäftsgang buchen zu können müssen Sie Kenntnisse über die folgenden Lehrninhalte haben:
A5: Buchungen auf Bestandskonten
A6: Buchungen auf Erfolgskonten
A7: Bestandsveränderungen
A8: Umsatzsteuer
A9: Buchung von Bezugskosten | E9: Für den Kontenabschluss müssen Sie Grundkenntnisse in der Tabellenkalkulation haben!
A10: Buchung von Nachlässen und Erlösberichtigungen
A11: Kontenabschluss im Hauptbuch
A13: Buchen im Grundbuch
A14: 1. Wählen Sie die Tabelle "Grundbuch".
A16: 2. Buchen Sie die Geschäftsvorfälle
A17: entweder durch Direkteingabe in die entsprechenden Felder des Grundbuchs (Kontennummern und Beträge)
A18: oder durch Aufruf von Buchungsfenstern. (Klicken Sie dazu jeweils auf die Schaltfläche "Buchung" und beenden
A19: Sie die Eingabe mit "OK".)
A20: Die Kontennummern sind vierstellig anzugeben. (siehe Kontenplan). Bei zusammengesetzten Buchungssätzen
A21: sind die Buchungen nach der Höhe der Beträge geordnet vorzunehmen.
A23: 3. Sie können sich den Kontenplan mit Kontennummern jederzeit durch Klick auf den
A24: entsprechenden Button anzeigen lassen.
A26: 4. Die Richtigkeit Ihrer Buchungen wird bestätigt oder Sie werden auf
A27: Fehler hingewiesen. (Ohne Buchung werden Fehler angezeigt.)
A29: Buchen in Hauptbuch, GuV und Schlussbilanz
A30: 1. Navigation
A31: Sie können über die Blattregisterkarten die Tabellen Grundbuch, Hauptbuch, GuV und Bilanzbuch ansteuern.
A32: Einen direkten Zugriff auf die jeweils benötigen Konten haben Sie über die folgenden Schalter:
B33: Hauptbuchkonten | E33: Grundbuch | G33: Nachlässe (Rohstoffe)
B34: Gewinn und Verlust | E34: Schlussbilanz | G34: Rohstoffe
B35: Bestandsveränderungen | E35: Umsatzsteuer | G35: Erlösberichtigungen
B36: Vorsteuer | E36: Unfertige Erzeugnisse | G36: Umsatzerlöse
B37: Fertige Erzeugnisse | E37: Bezugskosten (Rohst.)
A38: Über diese Schalter können Sie aus dem Grundbuch heraus das für die jeweilige Buchung benötigte Konto
A39: direkt aufrufen. Dieses Konto wird dann jeweils mit einem X markiert.
A41: 2. Buchungen
A42: Die Systematik wird Ihnen an einem Screenshot das Kontos Forderungen gezeigt.
A44: lfd. Nummern | E44: lfd. Nummern | G44: Navigation
E54: Beträge
B56: Kontenanruf (in jeder Zelle steht eine Kontonummer) | G56: Abschlussmeldung
B58: Eröffnungsbuchungen (bereits gebucht) | F58: A = Abschlussbuchung
B59: laufende Buchungen | F59: AB = Anfangsbestand
B60: Abschlussbuchungen und Berechnungen | F60: SB = Schlussbestand
A62: 3. Abschluss
A63: Die Konten sind unter fogenden Bedingungen richtig abgeschlossen.
A64: - Die Nummern der Gegenkonten werden gemäß den Grundsätzen ordnungsgemäßer Buchführung geordnet,
A65: in die dafür vorgesehenen Zellen eingetragen. Die Reihenfolge der Eintragungen muss mit dem Grundbuch
A66: übereinstimmen.
A67: - Die Beträge sind richtig eingetragen.
A68: - Die Abschlussberechnungen sind korrekt.

Sheet Grundbuch
A2: Geschäftsvorfälle
A3: Grundbuch
G4: 0.19
A6: 1. | B6: Kauf eines Pkw auf Ziel, | D6: netto | E6: 28000 | F6: =IF(AND(B10="0840",B11="2600",E10="4400"),"Die Konten sind richtig!","Mindestens ein Konto ist falsch!") -> Mindestens ein Konto ist falsch!
A7: Geschäftsvorfall | D7: USt. | E7: =E6*G4 -> 5320 | F7: =IF(AND(D10=E6,D11=E7,G10=E8),"Die Beträge sind richtig!","Mindestens ein Betrag ist falsch!") -> Mindestens ein Betrag ist falsch!
D8: brutto | E8: =SUM(E6:E7) -> 33320 | F8: =IF(AND(F6="Die Konten sind richtig!",F7="Die Beträge sind richtig!"),"Alles richtig!","Es sind noch Fehler vorhanden!") -> Es sind noch Fehler vorhanden!
B9: Soll | C9: Konto | D9: € | E9: Haben | F9: Konto | G9: €
A10: Buchungssatz | C10: =IF(B10="","",VLOOKUP(B10,Kontenplan!$A$4:$B$30,2)) ->  | F10: =IF(E10="","",VLOOKUP(E10,Kontenplan!$A$4:$B$30,2)) -> 
C11: =IF(B11="","",VLOOKUP(B11,Kontenplan!$A$4:$B$30,2)) ->  | F11: =IF(E11="","",VLOOKUP(E11,Kontenplan!$A$4:$B$30,2)) -> 
A13: 2. | B13: Barzahlung von Bezugskosten für die Lieferung von Rohstoffen | D13: netto | E13: 350 | F13: =IF(AND(B17="2001",B18="2600",E17="2880"),"Die Konten sind richtig!","Mindestens ein Konto ist falsch!") -> Mindestens ein Konto ist falsch!
A14: Geschäftsvorfall | D14: USt. | E14: =E13*G4 -> 66.5 | F14: =IF(AND(D17=E13,D18=E14,G17=E15),"Die Beträge sind richtig!","Mindestens ein Betrag ist falsch!") -> Mindestens ein Betrag ist falsch!
D15: brutto | E15: =SUM(E13:E14) -> 416.5 | F15: =IF(AND(F13="Die Konten sind richtig!",F14="Die Beträge sind richtig!"),"Alles richtig!","Es sind noch Fehler vorhanden!") -> Es sind noch Fehler vorhanden!
B16: Soll | C16: Konto | D16: € | E16: Haben | F16: Konto | G16: €
A17: Buchungssatz | C17: =IF(B17="","",VLOOKUP(B17,Kontenplan!$A$4:$B$30,2)) ->  | F17: =IF(E17="","",VLOOKUP(E17,Kontenplan!$A$4:$B$30,2)) -> 
C18: =IF(B18="","",VLOOKUP(B18,Kontenplan!$A$4:$B$30,2)) ->  | F18: =IF(E18="","",VLOOKUP(E18,Kontenplan!$A$4:$B$30,2)) -> 
A20: 3. | B20: Ein Kunde begleicht eine Ausgangsrechnung abzüglich 2% Skonto durch Banküberweisung. | D20: Gutschrift | E20: =ROUND(E23-(E23*2%),2) -> 23324 | F20: =IF(AND(B25="2800",B26="5001",B27="4800",E25="2400"),"Die Konten sind richtig!","Mindestens ein Konto ist falsch!") -> Mindestens ein Konto ist falsch!
D21: Skonto | E21: =ROUND(((E23*2%)*100)/(100+(100*G4)),2) -> 400
A22: Geschäftsvorfall | D22: USt. | E22: =ROUND(E21*G4,2) -> 76 | F22: =IF(AND(D25=E20,D26=E21,D27=E22,G25=E23),"Die Beträge sind richtig!","Mindestens ein Betrag ist falsch!") -> Mindestens ein Betrag ist falsch!
D23: Bruttobetrag | E23: 23800 | F23: =IF(AND(F20="Die Konten sind richtig!",F22="Die Beträge sind richtig!"),"Alles richtig!","Es sind noch Fehler vorhanden!") -> Es sind noch Fehler vorhanden!
B24: Soll | C24: Konto | D24: € | E24: Haben | F24: Konto | G24: €
A25: Buchungssatz | C25: =IF(B25="","",VLOOKUP(B25,Kontenplan!$A$4:$B$30,2)) ->  | F25: =IF(E25="","",VLOOKUP(E25,Kontenplan!$A$4:$B$30,2)) -> 
C26: =IF(B26="","",VLOOKUP(B26,Kontenplan!$A$4:$B$30,2)) ->  | F26: =IF(E26="","",VLOOKUP(E26,Kontenplan!$A$4:$B$30,2)) -> 
C27: =IF(B27="","",VLOOKUP(B27,Kontenplan!$A$4:$B$30,2)) ->  | F27: =IF(E27="","",VLOOKUP(E27,Kontenplan!$A$4:$B$30,2)) -> 
A29: 4. | B29: Einkauf von Rohstoffen auf Ziel bei der Cotton GmbH & Co KG, | D29: netto | E29: 25000 | F29: =IF(AND(B33="2000",B34="2600",E33="4400"),"Die Konten sind richtig!","Mindestens ein Konto ist falsch!") -> Mindestens ein Konto ist falsch!
A30: Geschäftsvorfall | D30: USt. | E30: =E29*G4 -> 4750 | F30: =IF(AND(D33=E29,D34=E30,G33=E31),"Die Beträge sind richtig!","Mindestens ein Betrag ist falsch!") -> Mindestens ein Betrag ist falsch!
D31: brutto | E31: =SUM(E29:E30) -> 29750 | F31: =IF(AND(F29="Die Konten sind richtig!",F30="Die Beträge sind richtig!"),"Alles richtig!","Es sind noch Fehler vorhanden!") -> Es sind noch Fehler vorhanden!
B32: Soll | C32: Konto | D32: € | E32: Haben | F32: Konto | G32: €
A33: Buchungssatz | C33: =IF(B33="","",VLOOKUP(B33,Kontenplan!$A$4:$B$30,2)) ->  | F33: =IF(E33="","",VLOOKUP(E33,Kontenplan!$A$4:$B$30,2)) -> 
C34: =IF(B34="","",VLOOKUP(B34,Kontenplan!$A$4:$B$30,2)) ->  | F34: =IF(E34="","",VLOOKUP(E34,Kontenplan!$A$4:$B$30,2)) -> 
A36: 5. | B36: Rücksendung beschädigter Rohstoffe aus Geschäftsvorfall 4. an die Cotton GmbH & Co KG, | D36: netto | E36: 800 | F36: =IF(AND(B40="4400",E40="2000",E41="2600"),"Die Konten sind richtig!","Mindestens ein Konto ist falsch!") -> Mindestens ein Konto ist falsch!
A37: Geschäftsvorfall | D37: USt. | E37: =E36*G4 -> 152 | F37: =IF(AND(D40=E38,G40=E36,G41=E37),"Die Beträge sind richtig!","Mindestens ein Betrag ist falsch!") -> Mindestens ein Betrag ist falsch!
D38: brutto | E38: =SUM(E36:E37) -> 952 | F38: =IF(AND(F36="Die Konten sind richtig!",F37="Die Beträge sind richtig!"),"Alles richtig!","Es sind noch Fehler vorhanden!") -> Es sind noch Fehler vorhanden!
B39: Soll | C39: Konto | D39: € | E39: Haben | F39: Konto | G39: €
A40: Buchungssatz | C40: =IF(B40="","",VLOOKUP(B40,Kontenplan!$A$4:$B$30,2)) ->  | F40: =IF(E40="","",VLOOKUP(E40,Kontenplan!$A$4:$B$30,2)) -> 
C41: =IF(B41="","",VLOOKUP(B41,Kontenplan!$A$4:$B$30,2)) ->  | F41: =IF(E41="","",VLOOKUP(E41,Kontenplan!$A$4:$B$30,2)) -> 
A43: 6. | B43: Bonusgewährung an einen Kunden, | D43: netto | E43: 250 | F43: =IF(AND(B47="5001",B48="4800",E47="2400"),"Die Konten sind richtig!","Mindestens ein Konto ist falsch!") -> Mindestens ein Konto ist falsch!
A44: Geschäftsvorfall | D44: USt. | E44: =E43*G4 -> 47.5 | F44: =IF(AND(D47=E43,D48=E44,G47=E45),"Die Beträge sind richtig!","Mindestens ein Betrag ist falsch!") -> Mindestens ein Betrag ist falsch!
D45: brutto | E45: =SUM(E43:E44) -> 297.5 | F45: =IF(AND(F43="Die Konten sind richtig!",F44="Die Beträge sind richtig!"),"Alles richtig!","Es sind noch Fehler vorhanden!") -> Es sind noch Fehler vorhanden!
B46: Soll | C46: Konto | D46: € | E46: Haben | F46: Konto | G46: €
A47: Buchungssatz | C47: =IF(B47="","",VLOOKUP(B47,Kontenplan!$A$4:$B$30,2)) ->  | F47: =IF(E47="","",VLOOKUP(E47,Kontenplan!$A$4:$B$30,2)) -> 
C48: =IF(B48="","",VLOOKUP(B48,Kontenplan!$A$4:$B$30,2)) ->  | F48: =IF(E48="","",VLOOKUP(E48,Kontenplan!$A$4:$B$30,2)) -> 
A50: 7. | B50: Barzahlung für eine Maschinenreparatur, | D50: netto | E50: 2800 | F50: =IF(AND(B54="6160",B55="2600",E54="2880"),"Die Konten sind richtig!","Mindestens ein Konto ist falsch!") -> Mindestens ein Konto ist falsch!
A51: Geschäftsvorfall | D51: USt. | E51: =E50*G4 -> 532 | F51: =IF(AND(D54=E50,D55=E51,G54=E52),"Die Beträge sind richtig!","Mindestens ein Betrag ist falsch!") -> Mindestens ein Betrag ist falsch!
D52: brutto | E52: =SUM(E50:E51) -> 3332 | F52: =IF(AND(F50="Die Konten sind richtig!",F51="Die Beträge sind richtig!"),"Alles richtig!","Es sind noch Fehler vorhanden!") -> Es sind noch Fehler vorhanden!
B53: Soll | C53: Konto | D53: € | E53: Haben | F53: Konto | G53: €
A54: Buchungssatz | C54: =IF(B54="","",VLOOKUP(B54,Kontenplan!$A$4:$B$30,2)) ->  | F54: =IF(E54="","",VLOOKUP(E54,Kontenplan!$A$4:$B$30,2)) -> 
C55: =IF(B55="","",VLOOKUP(B55,Kontenplan!$A$4:$B$30,2)) ->  | F55: =IF(E55="","",VLOOKUP(E55,Kontenplan!$A$4:$B$30,2)) -> 
A57: 8. | B57: Gutschrift eines Rohstofflieferanten für einen Preisnachlass aufgrund eines Mangels, | D57: netto | E57: 850 | F57: =IF(AND(B61="4400",E61="2002",E62="2600"),"Die Konten sind richtig!","Mindestens ein Konto ist falsch!") -> Mindestens ein Konto ist falsch!
A58: Geschäftsvorfall | D58: USt. | E58: =E57*G4 -> 161.5 | F58: =IF(AND(D61=E59,G61=E57,G62=E58),"Die Beträge sind richtig!","Mindestens ein Betrag ist falsch!") -> Mindestens ein Betrag ist falsch!
D59: brutto | E59: =SUM(E57:E58) -> 1011.5 | F59: =IF(AND(F57="Die Konten sind richtig!",F58="Die Beträge sind richtig!"),"Alles richtig!","Es sind noch Fehler vorhanden!") -> Es sind noch Fehler vorhanden!
B60: Soll | C60: Konto | D60: € | E60: Haben | F60: Konto | G60: €
A61: Buchungssatz | C61: =IF(B61="","",VLOOKUP(B61,Kontenplan!$A$4:$B$30,2)) ->  | F61: =IF(E61="","",VLOOKUP(E61,Kontenplan!$A$4:$B$30,2)) -> 
C62: =IF(B62="","",VLOOKUP(B62,Kontenplan!$A$4:$B$30,2)) ->  | F62: =IF(E62="","",VLOOKUP(E62,Kontenplan!$A$4:$B$30,2)) -> 
A64: 9. | B64: Barzahlung für Ausgangsfrachten, | D64: netto | E64: 150 | F64: =IF(AND(B68="6140",B69="2600",E68="2880"),"Die Konten sind richtig!","Mindestens ein Konto ist falsch!") -> Mindestens ein Konto ist falsch!
A65: Geschäftsvorfall | D65: USt. | E65: =E64*G4 -> 28.5 | F65: =IF(AND(D68=E64,D69=E65,G68=E66),"Die Beträge sind richtig!","Mindestens ein Betrag ist falsch!") -> Mindestens ein Betrag ist falsch!
D66: brutto | E66: =SUM(E64:E65) -> 178.5 | F66: =IF(AND(F64="Die Konten sind richtig!",F65="Die Beträge sind richtig!"),"Alles richtig!","Es sind noch Fehler vorhanden!") -> Es sind noch Fehler vorhanden!
B67: Soll | C67: Konto | D67: € | E67: Haben | F67: Konto | G67: €
A68: Buchungssatz | C68: =IF(B68="","",VLOOKUP(B68,Kontenplan!$A$4:$B$30,2)) ->  | F68: =IF(E68="","",VLOOKUP(E68,Kontenplan!$A$4:$B$30,2)) -> 
C69: =IF(B69="","",VLOOKUP(B69,Kontenplan!$A$4:$B$30,2)) ->  | F69: =IF(E69="","",VLOOKUP(E69,Kontenplan!$A$4:$B$30,2)) -> 
A71: 10. | B71: Banküberweisung an einen Rohstofflieferer unter Abzug von 2% Skonto, | D71: Lastschrift | E71: =ROUND(E74-(E74*2%),2) -> 27988.8 | F71: =IF(AND(B76="4400",E76="2800",E77="2002",E78="2600"),"Die Konten sind richtig!","Mindestens ein Konto ist falsch!") -> Mindestens ein Konto ist falsch!
D72: Skonto | E72: =ROUND(((E74*2%)*100)/(100+(100*G4)),2) -> 480
A73: Geschäftsvorfall | D73: USt. | E73: =ROUND(E72*G4,2) -> 91.2 | F73: =IF(AND(D76=E74,E74,G76=E71,G77=E72,G78=E73),"Die Beträge sind richtig!","Mindestens ein Betrag ist falsch!") -> Mindestens ein Betrag ist falsch!
D74: Bruttobetrag | E74: 28560 | F74: =IF(AND(F71="Die Konten sind richtig!",F73="Die Beträge sind richtig!"),"Alles richtig!","Es sind noch Fehler vorhanden!") -> Es sind noch Fehler vorhanden!
B75: Soll | C75: Konto | D75: € | E75: Haben | F75: Konto | G75: €
A76: Buchungssatz | C76: =IF(B76="","",VLOOKUP(B76,Kontenplan!$A$4:$B$30,2)) ->  | F76: =IF(E76="","",VLOOKUP(E76,Kontenplan!$A$4:$B$30,2)) -> 
C77: =IF(B77="","",VLOOKUP(B77,Kontenplan!$A$4:$B$30,2)) ->  | F77: =IF(E77="","",VLOOKUP(E77,Kontenplan!$A$4:$B$30,2)) -> 
C78: =IF(B78="","",VLOOKUP(B78,Kontenplan!$A$4:$B$30,2)) ->  | F78: =IF(E78="","",VLOOKUP(E78,Kontenplan!$A$4:$B$30,2)) -> 
A80: 11. | B80: Verkauf von Jeans, Jeansjacken und T-Shirts auf Ziel, | D80: netto | E80: 53000 | F80: =IF(AND(B84="2400",E84="5000",E85="4800"),"Die Konten sind richtig!","Mindestens ein Konto ist falsch!") -> Mindestens ein Konto ist falsch!
A81: Geschäftsvorfall | D81: USt. | E81: =E80*G4 -> 10070 | F81: =IF(AND(D84=E82,G84=E80,G85=E81),"Die Beträge sind richtig!","Mindestens ein Betrag ist falsch!") -> Mindestens ein Betrag ist falsch!
D82: brutto | E82: =SUM(E80:E81) -> 63070 | F82: =IF(AND(F80="Die Konten sind richtig!",F81="Die Beträge sind richtig!"),"Alles richtig!","Es sind noch Fehler vorhanden!") -> Es sind noch Fehler vorhanden!
B83: Soll | C83: Konto | D83: € | E83: Haben | F83: Konto | G83: €
A84: Buchungssatz | C84: =IF(B84="","",VLOOKUP(B84,Kontenplan!$A$4:$B$30,2)) ->  | F84: =IF(E84="","",VLOOKUP(E84,Kontenplan!$A$4:$B$30,2)) -> 
C85: =IF(B85="","",VLOOKUP(B85,Kontenplan!$A$4:$B$30,2)) ->  | F85: =IF(E85="","",VLOOKUP(E85,Kontenplan!$A$4:$B$30,2)) -> 
A87: 12. | B87: Wir zahlen Fracht für den Verkauf von Fertigen Erzeugnissen aus Geschäftsvorfall 11 bar, | D87: netto | E87: 1200 | F87: =IF(AND(B91="6140",B92="2600",E91="2880"),"Die Konten sind richtig!","Mindestens ein Konto ist falsch!") -> Mindestens ein Konto ist falsch!
A88: Geschäftsvorfall | D88: USt. | E88: =E87*G4 -> 228 | F88: =IF(AND(D91=E87,D92=E88,G91=E89),"Die Beträge sind richtig!","Mindestens ein Betrag ist falsch!") -> Mindestens ein Betrag ist falsch!
D89: brutto | E89: =SUM(E87:E88) -> 1428 | F89: =IF(AND(F87="Die Konten sind richtig!",F88="Die Beträge sind richtig!"),"Alles richtig!","Es sind noch Fehler vorhanden!") -> Es sind noch Fehler vorhanden!
B90: Soll | C90: Konto | D90: € | E90: Haben | F90: Konto | G90: €
A91: Buchungssatz | C91: =IF(B91="","",VLOOKUP(B91,Kontenplan!$A$4:$B$30,2)) ->  | F91: =IF(E91="","",VLOOKUP(E91,Kontenplan!$A$4:$B$30,2)) -> 
C92: =IF(B92="","",VLOOKUP(B92,Kontenplan!$A$4:$B$30,2)) ->  | F92: =IF(E92="","",VLOOKUP(E92,Kontenplan!$A$4:$B$30,2)) -> 
A94: Abschlussangaben
A95: A1 | B95: Endbestände lt. Inventur | F95: =IF(AND(B99="8010",E99="2100",B100="8010",E100="2200"),"Die Konten sind richtig!","Mindestens ein Konto ist falsch!") -> Mindestens ein Konto ist falsch!
A96: Abschlussangabe | C96: - Unfertige Erzeugnisse | E96: 12400 | F96: =IF(AND(D99=E96,D100=E97,G99=E96,G100=E97),"Die Beträge sind richtig!","Mindestens ein Betrag ist falsch!") -> Mindestens ein Betrag ist falsch!
C97: - Fertige Erzeugnisse | E97: 34000 | F97: =IF(AND(F95="Die Konten sind richtig!",F96="Die Beträge sind richtig!"),"Alles richtig!","Es sind noch Fehler vorhanden!") -> Es sind noch Fehler vorhanden!
B98: Soll | C98: Konto | D98: € | E98: Haben | F98: Konto | G98: €
A99: Buchungssatz | C99: =IF(B99="","",VLOOKUP(B99,Kontenplan!$A$4:$B$30,2)) ->  | F99: =IF(E99="","",VLOOKUP(E99,Kontenplan!$A$4:$B$30,2)) -> 
C100: =IF(B100="","",VLOOKUP(B100,Kontenplan!$A$4:$B$30,2)) ->  | F100: =IF(E100="","",VLOOKUP(E100,Kontenplan!$A$4:$B$30,2)) -> 
A102: =IF(AND(F8="Alles richtig!",F15="Alles richtig!",F23="Alles richtig!",F31="Alles richtig!",F38="Alles richtig!",F45="Alles richtig!",F52="Alles richtig!",F59="Alles richtig!",F66="Alles richtig!",F74="Alles richtig!",F82="Alles richtig!",F89="Alles richtig!",F97="Alles richtig!",F97="Alles richtig!"),"Die Buchungen im Grundbuch sind richtig!","Das Grundbuch ist noch nicht vollständig!") -> Das Grundbuch ist noch nicht vollständig!

Sheet Hauptbuch
A1: Hauptbuch
A3: Soll | B3: 0500 Grundstücke und Bauten | J3: Haben
A4: Nr. | B4: Kontenanruf | E4: Euro | F4: Nr. | G4: Kontenanruf | J4: Euro | K4: =IF(L4="Kontenanrufe vollständig!",1,2) -> 2 | L4: =IF(G5=8010,"Kontenanrufe vollständig!","Kontenanrufe nicht vollständig!") -> Kontenanrufe nicht vollständig!
A5: AB | B5: 8000 | E5: =Bilanzbuch!C4 -> 220000 | F5: SB | K5: =IF(L5="Saldo richtig!",1,2) -> 2 | L5: =IF(J5=220000,"Saldo richtig!","Ermitteln Sie den richtigen Saldo!") -> Ermitteln Sie den richtigen Saldo!
A7: Soll | B7: 0700 Technische Anlagen und Maschinen | J7: Haben
A8: Nr. | B8: Kontenanruf | E8: Euro | F8: Nr. | G8: Kontenanruf | J8: Euro | K8: =IF(L8="Kontenanrufe vollständig!",1,2) -> 2 | L8: =IF(G9=8010,"Kontenanrufe vollständig!","Kontenanrufe nicht vollständig!") -> Kontenanrufe nicht vollständig!
A9: AB | B9: 8000 | E9: =Bilanzbuch!C5 -> 443000 | F9: SB | K9: =IF(L9="Saldo richtig!",1,2) -> 2 | L9: =IF(J9=443000,"Saldo richtig!","Ermitteln Sie den richtigen Saldo!") -> Ermitteln Sie den richtigen Saldo!
A11: Soll | B11: 0800 Betriebs- und Geschäftsausstattung | J11: Haben
A12: Nr. | B12: Kontenanruf | E12: Euro | F12: Nr. | G12: Kontenanruf | J12: Euro | K12: =IF(L12="Kontenanrufe vollständig!",1,2) -> 2 | L12: =IF(G13=8010,"Kontenanrufe vollständig!","Kontenanrufe nicht vollständig!") -> Kontenanrufe nicht vollständig!
A13: AB | B13: 8000 | E13: =Bilanzbuch!C6 -> 76800 | F13: SB | K13: =IF(L13="Saldo richtig!",1,2) -> 2 | L13: =IF(J13=76800,"Saldo richtig!","Ermitteln Sie den richtigen Saldo!") -> Ermitteln Sie den richtigen Saldo!
A15: Soll | B15: 0840 Fuhrpark | J15: Haben
A16: Nr. | B16: Kontenanruf | E16: Euro | F16: Nr. | G16: Kontenanruf | J16: Euro
A17: AB | B17: 8000 | E17: =Bilanzbuch!C7 -> 88000 | F17: SB
A18: 1. | K18: =IF(L18="Kontenanrufe vollständig!",1,2) -> 2 | L18: =IF(AND(B18=4400,G17=8010),"Kontenanrufe vollständig!","Kontenanrufe nicht vollständig!") -> Kontenanrufe nicht vollständig!
K19: =IF(L19="Saldo richtig!",1,2) -> 2 | L19: =IF(J17=116000,"Saldo richtig!","Ermitteln Sie den richtigen Saldo!") -> Ermitteln Sie den richtigen Saldo!
A21: Soll | B21: 2000 Rohstoffe | J21: Haben
A22: Nr. | B22: Kontenanruf | E22: Euro | F22: Nr. | G22: Kontenanruf | J22: Euro
A23: AB | B23: 8000 | E23: =Bilanzbuch!C8 -> 154000 | F23: 5.
A24: 4. | F24: A | K24: =IF(L24="Kontenanrufe vollständig!",1,2) -> 2 | L24: =IF(AND(B24=4400,B25=2001,G23=4400,G24=2002,G25=8010),"Kontenanrufe vollständig!","Kontenanrufe nicht vollständig!") -> Kontenanrufe nicht vollständig!
A25: A | F25: SB | K25: =IF(L25="Saldo richtig!",1,2) -> 2 | L25: =IF(J25=(E23+E24+E25-J23-J24),"Saldo richtig!","Ermitteln Sie den richtigen Saldo!") -> Ermitteln Sie den richtigen Saldo!
A28: Soll | B28: 2001 Bezugskosten (Rohstoffe) | J28: Haben
A29: Nr. | B29: Kontenanruf | E29: Euro | F29: Nr. | G29: Kontenanruf | J29: Euro
A30: 2. | F30: A | G30: 2000 | J30: =E30 -> 0 | K30: =IF(L30="Kontenanrufe vollständig!",1,2) -> 2 | L30: =IF(AND(B30=2880,G30=2000),"Kontenanrufe vollständig!","Kontenanrufe nicht vollständig!") -> Kontenanrufe nicht vollständig!
K31: =IF(L31="Saldo richtig!",1,2) -> 2 | L31: =IF(J30=350,"Saldo richtig!","Ermitteln Sie den richtigen Saldo!") -> Ermitteln Sie den richtigen Saldo!
A33: Soll | B33: 2002 Nachlässe (Rohstoffe) | J33: Haben
A34: Nr. | B34: Kontenanruf | E34: Euro | F34: Nr. | G34: Kontenanruf | J34: Euro
A35: A | B35: 2000 | F35: 8. | K35: =IF(L35="Kontenanrufe vollständig!",1,2) -> 2 | L35: =IF(AND(B35=2000,G35=4400,G36=4400),"Kontenanrufe vollständig!","Kontenanrufe nicht vollständig!") -> Kontenanrufe nicht vollständig!
F36: 10. | K36: =IF(L36="Saldo richtig!",1,2) -> 2 | L36: =IF(AND(E35>0,E35=(J35+J36)),"Saldo richtig!","Ermitteln Sie den richtigen Saldo!") -> Ermitteln Sie den richtigen Saldo!
A39: Soll | B39: 2020 Hilfsstoffe | J39: Haben
A40: Nr. | B40: Kontenanruf | E40: Euro | F40: Nr. | G40: Kontenanruf | J40: Euro | K40: =IF(L40="Kontenanrufe vollständig!",1,2) -> 2 | L40: =IF(G41=8010,"Kontenanrufe vollständig!","Kontenanrufe nicht vollständig!") -> Kontenanrufe nicht vollständig!
A41: AB | B41: 8000 | E41: =Bilanzbuch!C9 -> 12800 | F41: SB | K41: =IF(L41="Saldo richtig!",1,2) -> 2 | L41: =IF(J41=12800,"Saldo richtig!","Ermitteln Sie den richtigen Saldo!") -> Ermitteln Sie den richtigen Saldo!
A43: Soll | B43: 2030 Betriebsstoffe | J43: Haben
A44: Nr. | B44: Kontenanruf | E44: Euro | F44: Nr. | G44: Kontenanruf | J44: Euro | K44: =IF(L44="Kontenanrufe vollständig!",1,2) -> 2 | L44: =IF(G45=8010,"Kontenanrufe vollständig!","Kontenanrufe nicht vollständig!") -> Kontenanrufe nicht vollständig!
A45: AB | B45: 8000 | E45: =Bilanzbuch!C10 -> 7800 | F45: SB | K45: =IF(L45="Saldo richtig!",1,2) -> 2 | L45: =IF(J45=7800,"Saldo richtig!","Ermitteln Sie den richtigen Saldo!") -> Ermitteln Sie den richtigen Saldo!
A47: Soll | B47: 2100 Unfertige Erzeugnisse | J47: Haben
A48: Nr. | B48: Kontenanruf | E48: Euro | F48: Nr. | G48: Kontenanruf | J48: Euro
A49: AB | B49: 8000 | E49: =Bilanzbuch!C11 -> 17800 | F49: A1
F50: =IF(E49>J49,"A","") -> A | K50: =IF(L50="Kontenanrufe vollständig!",1,2) -> 2 | L50: =IF(G50=5200,"Kontenanrufe vollständig!","Kontenanrufe nicht vollständig!") -> Kontenanrufe nicht vollständig!
K51: =IF(L51="Saldo richtig!",1,2) -> 2 | L51: =IF(J50=5400,"Saldo richtig!","Ermitteln Sie den richtigen Saldo!") -> Ermitteln Sie den richtigen Saldo!
A53: Soll | B53: 2200 Fertige Erzeugnisse | J53: Haben
A54: Nr. | B54: Kontenanruf | E54: Euro | F54: Nr. | G54: Kontenanruf | J54: Euro
A55: AB | B55: 8000 | E55: =Bilanzbuch!C12 -> 32700 | F55: A1
A56: A | K56: =IF(L56="Kontenanrufe vollständig!",1,2) -> 2 | L56: =IF(B56=5200,"Kontenanrufe vollständig!","Kontenanrufe nicht vollständig!") -> Kontenanrufe nicht vollständig!
K57: =IF(L57="Saldo richtig!",1,2) -> 2 | L57: =IF(E56=1300,"Saldo richtig!","Ermitteln Sie den richtigen Saldo!") -> Ermitteln Sie den richtigen Saldo!
A59: Soll | B59: 2400 Forderungen aus Lieferungen und Leistungen | J59: Haben
A60: Nr. | B60: Kontenanruf | E60: Euro | F60: Nr. | G60: Kontenanruf | J60: Euro
A61: AB | B61: 8000 | E61: =Bilanzbuch!C13 -> 54800 | F61: 3.
A62: 11. | F62: 6. | K62: =IF(L62="Kontenanrufe vollständig!",1,2) -> 2 | L62: =IF(AND(B62=5000,C62=4800,G61=2800,H61=5001,I61=4800,G62=5001,H62=4800,G63=8010),"Kontenanrufe vollständig!","Kontenanrufe nicht vollständig!") -> Kontenanrufe nicht vollständig!
F63: SB | K63: =IF(L63="Saldo richtig!",1,2) -> 2 | L63: =IF(J63=(E61+E62-J61-J62),"Saldo richtig!","Ermitteln Sie den richtigen Saldo!") -> Ermitteln Sie den richtigen Saldo!
A66: Soll | B66: 2600 Vorsteuer | J66: Haben
A67: Nr. | B67: Kontenanruf | E67: Euro | F67: Nr. | G67: Kontenanruf | J67: Euro
A68: 1. | F68: 5.
A69: 2. | F69: 8. | K69: =IF(L69="Kontenanrufe vollständig!",1,2) -> 2 | L69: =IF(AND(B68=4400,B69=2880,B70=4400,B71=2880,B72=2880,B73=2880,G68=4400,G69=4400,G70=4400,G71=4800),"Kontenanrufe vollständig!","Kontenanrufe nicht vollständig!") -> Kontenanrufe nicht vollständig!
A70: 4. | F70: 10. | K70: =IF(L70="Saldo richtig!",1,2) -> 2 | L70: =IF(AND(J71>0,J71=E68+E69+E70+E71+E72+E73-J68-J69-J70),"Saldo richtig!","Ermitteln Sie den richtigen Saldo!") -> Ermitteln Sie den richtigen Saldo!
A71: 7. | F71: A
A72: 9.
A73: 12.
A76: Soll | B76: 2800 Kreditinstitute/Bank | J76: Haben
A77: Nr. | B77: Kontenanruf | E77: Euro | F77: Nr. | G77: Kontenanruf | J77: Euro
A78: AB | B78: 8000 | E78: =Bilanzbuch!C14 -> 87900 | F78: 10.
A79: 3. | F79: SB | K79: =IF(L79="Kontenanrufe vollständig!",1,2) -> 2 | L79: =IF(AND(B79=2400,G78=4400,G79=8010),"Kontenanrufe vollständig!","Kontenanrufe nicht vollständig!") -> Kontenanrufe nicht vollständig!
K80: =IF(L80="Saldo richtig!",1,2) -> 2 | L80: =IF(J79=(E78+E79-J78),"Saldo richtig!","Ermitteln Sie den richtigen Saldo!") -> Ermitteln Sie den richtigen Saldo!
A82: Soll | B82: 2880 Kasse | J82: Haben | K82: X
A83: Nr. | B83: Kontenanruf | E83: Euro | F83: Nr. | G83: Kontenanruf | J83: Euro
A84: AB | B84: 8000 | E84: =Bilanzbuch!C15 -> 11200 | F84: 2.
F85: 7. | K85: =IF(L85="Kontenanrufe vollständig!",1,2) -> 2 | L85: =IF(AND(G84=2001,H84=2600,G85=6160,H85=2600,G86=6140,H86=2600,G87=6140,H87=2600,G88=8010),"Kontenanrufe vollständig!","Kontenanrufe nicht vollständig!") -> Kontenanrufe nicht vollständig!
F86: 9. | K86: =IF(L86="Saldo richtig!",1,2) -> 2 | L86: =IF(J88=(E84-J84-J85-J86-J87),"Saldo richtig!","Ermitteln Sie den richtigen Saldo!") -> Ermitteln Sie den richtigen Saldo!
F87: 12.
F88: SB
A91: Soll | B91: 3000 Eigenkapital | J91: Haben
A92: Nr. | B92: Kontenanruf | E92: Euro | F92: Nr. | G92: Kontenanruf | J92: Euro
A93: SB | F93: AB | G93: 8000 | J93: =Bilanzbuch!F4 -> 714080
F94: A | K94: =IF(L94="Kontenanrufe vollständig!",1,2) -> 2 | L94: =IF(AND(G94=8020,B93=8010),"Kontenanrufe vollständig!","Kontenanrufe nicht vollständig!") -> Kontenanrufe nicht vollständig!
K95: =IF(L95="Saldo richtig!",1,2) -> 2 | L95: =IF(E93=(J93+J94),"Saldo richtig!","Ermitteln Sie den richtigen Saldo!") -> Ermitteln Sie den richtigen Saldo!
A97: Soll | B97: 4200 Verbindlichkeiten gegenüber Kreditinstituten (Darlehen) | J97: Haben
A98: Nr. | B98: Kontenanruf | E98: Euro | F98: Nr. | G98: Kontenanruf | J98: Euro | K98: =IF(L98="Kontenanrufe vollständig!",1,2) -> 2 | L98: =IF(B99=8010,"Kontenanrufe vollständig!","Kontenanrufe nicht vollständig!") -> Kontenanrufe nicht vollständig!
A99: SB | F99: AB | G99: 8000 | J99: =Bilanzbuch!F5 -> 450000 | K99: =IF(L99="Saldo richtig!",1,2) -> 2 | L99: =IF(E99=450000,"Saldo richtig!","Ermitteln Sie den richtigen Saldo!") -> Ermitteln Sie den richtigen Saldo!
A101: Soll | B101: 4400 Verbindlichkeiten aus Lieferungen und Leistungen | J101: Haben | K101: X
A102: Nr. | B102: Kontenanruf | E102: Euro | F102: Nr. | G102: Kontenanruf | J102: Euro
A103: 5. | F103: AB | G103: 8000 | J103: =Bilanzbuch!F6 -> 34600
A104: 8. | F104: 1. | K104: =IF(L104="Kontenanrufe vollständig!",1,2) -> 2 | L104: =IF(AND(B103=2000,C103=2600,B104=2002,C104=2600,B105=2800,C105=2002,D105=2600,B106=8010,G104="0840",H104=2600,G105=2000,H105=2600),"Kontenanrufe vollständig!","Kontenanrufe nicht vollständig!") -> Kontenanrufe nicht vollständig!
A105: 10. | F105: 4. | K105: =IF(L105="Saldo richtig!",1,2) -> 2 | L105: =IF(E106=(J103+J104+J105-E103-E104-E105),"Saldo richtig!","Ermitteln Sie den richtigen Saldo!") -> Ermitteln Sie den richtigen Saldo!
A106: SB
A109: Soll | B109: 4800 Umsatzsteuer | J109: Haben
A110: Nr. | B110: Kontenanruf | E110: Euro | F110: Nr. | G110: Kontenanruf | J110: Euro
A111: 3. | F111: AB | G111: 8000 | J111: =Bilanzbuch!F7 -> 8120
A112: 6. | F112: 11.
A113: A. | K113: =IF(L113="Kontenanrufe vollständig!",1,2) -> 2 | L113: =IF(AND(B111=2400,B112=2400,B113=2600,B114=8010,G112=2400),"Kontenanrufe vollständig!","Kontenanrufe nicht vollständig!") -> Kontenanrufe nicht vollständig!
A114: SB | K114: =IF(L114="Saldo richtig!",1,2) -> 2 | L114: =IF(E114=(J111+J112-E111-E112-E113),"Saldo richtig!","Ermitteln Sie den richtigen Saldo!") -> Ermitteln Sie den richtigen Saldo!
A117: Soll | B117: 5000 Umsatzerlöse | J117: Haben
A118: Nr. | B118: Kontenanruf | E118: Euro | F118: Nr. | G118: Kontenanruf | J118: Euro
A119: A | F119: 11.
A120: A | K120: =IF(L120="Kontenanrufe vollständig!",1,2) -> 2 | L120: =IF(AND(B119=5001,B120=8020,G119=2400),"Kontenanrufe vollständig!","Kontenanrufe nicht vollständig!") -> Kontenanrufe nicht vollständig!
K121: =IF(L121="Saldo richtig!",1,2) -> 2 | L121: =IF(AND(E120>0,E120=(J119-E119)),"Saldo richtig!","Ermitteln Sie den richtigen Saldo!") -> Ermitteln Sie den richtigen Saldo!
A123: Soll | B123: 5001 Erlösberichtigungen | J123: Haben
A124: Nr. | B124: Kontenanruf | E124: Euro | F124: Nr. | G124: Kontenanruf | J124: Euro
A125: 3. | F125: A | K125: =IF(L125="Kontenanrufe vollständig!",1,2) -> 2 | L125: =IF(AND(B125=2400,B126=2400,G125=5000),"Kontenanrufe vollständig!","Kontenanrufe nicht vollständig!") -> Kontenanrufe nicht vollständig!
A126: 6. | K126: =IF(L126="Saldo richtig!",1,2) -> 2 | L126: =IF(AND(J125>0,J125=(E125+E126)),"Saldo richtig!","Ermitteln Sie den richtigen Saldo!") -> Ermitteln Sie den richtigen Saldo!
A129: Soll | B129: 5200 Bestandsveränderunen | J129: Haben
A130: Nr. | B130: Kontenanruf | E130: Euro | F130: Nr. | G130: Kontenanruf | J130: Euro
A131: =IF(J49<E49,"A","") -> A | F131: A
F132: A
K133: =IF(L133="Kontenanrufe vollständig!",1,2) -> 2 | L133: =IF(AND(B131=2100,G131=2200,G132=8020),"Kontenanrufe vollständig!","Kontenanrufe nicht vollständig!") -> Kontenanrufe nicht vollständig!
K134: =IF(L134="Saldo richtig!",1,2) -> 2 | L134: =IF(J132=4100,"Saldo richtig!","Ermitteln Sie den richtigen Saldo!") -> Ermitteln Sie den richtigen Saldo!
A136: Soll | B136: 6140 Frachten und Femdlager | J136: Haben
A137: Nr. | B137: Kontenanruf | E137: Euro | F137: Nr. | G137: Kontenanruf | J137: Euro
A138: 9. | F138: A
A139: 12. | K139: =IF(L139="Kontenanrufe vollständig!",1,2) -> 2 | L139: =IF(AND(B138=2880,B139=2880,G138=8020),"Kontenanrufe vollständig!","Kontenanrufe nicht vollständig!") -> Kontenanrufe nicht vollständig!
K140: =IF(L140="Saldo richtig!",1,2) -> 2 | L140: =IF(J138=1350,"Saldo richtig!","Ermitteln Sie den richtigen Saldo!") -> Ermitteln Sie den richtigen Saldo!
A142: Soll | B142: 6160 Fremdinstandhaltung | J142: Haben
A143: Nr. | B143: Kontenanruf | E143: Euro | F143: Nr. | G143: Kontenanruf | J143: Euro
A144: 7 | F144: A
K145: =IF(L145="Kontenanrufe vollständig!",1,2) -> 2 | L145: =IF(AND(B144=2880,G144=8020),"Kontenanrufe vollständig!","Kontenanrufe nicht vollständig!") -> Kontenanrufe nicht vollständig!
K146: =IF(L146="Saldo richtig!",1,2) -> 2 | L146: =IF(J144=2800,"Saldo richtig!","Ermitteln Sie den richtigen Saldo!") -> Ermitteln Sie den richtigen Saldo!

Sheet GuV
A1: Gewinn- und Verlustrechnung
A3: Soll | B3: 8020 Gewinn und Verlust | F3: Haben | G3: X
A4: 5200 | B4: =VLOOKUP(A4,Kontenplan!$A$4:$B$30,2) -> Bestandsveränderungen | D4: 5000 | E4: =VLOOKUP(D4,Kontenplan!$A$4:$B$30,2) -> Umsatzerlöse | G4: =IF(H4="rechnerisch richtig",1,2) -> 2 | H4: =IF(AND(C7>0,C7=(F4-C4-C5-C6)),"rechnerisch richtig","Sie haben noch Fehler!") -> Sie haben noch Fehler!
A5: 6140 | B5: Frachten und Fremdlager
A6: 6160 | B6: Fremdinstandhaltung
A7: 3000 | B7: Eigenkapital
K129: X

Sheet Bilanzbuch
A1: Bilanzbuch
A3: Aktiva | B3: 8000 Eröffnungsbilanz | F3: Passiva
A4: 0500 | B4: =VLOOKUP(A4,Kontenplan!$A$4:$B$30,2) -> Grundstücke und Bauten | C4: 220000 | D4: 3000 | E4: =VLOOKUP(D4,Kontenplan!$A$4:$B$30,2) -> Eigenkapital | F4: =F16-SUM(F5:F15) -> 714080
A5: 0700 | B5: =VLOOKUP(A5,Kontenplan!$A$4:$B$30,2) -> Technische Anlagen und Maschinen | C5: 443000 | D5: 4200 | E5: Verbindlichkeiten g. Kreditinstitute | F5: 450000
A6: 0800 | B6: =VLOOKUP(A6,Kontenplan!$A$4:$B$30,2) -> Beriebs- und Geschäftsausstattung | C6: 76800 | D6: 4400 | E6: =VLOOKUP(D6,Kontenplan!$A$4:$B$30,2) -> Verbindlichkeiten a.L.u.L. | F6: 34600
A7: 0840 | B7: Fuhrpark | C7: 88000 | D7: 4800 | E7: =VLOOKUP(D7,Kontenplan!$A$4:$B$30,2) -> Umsatzsteuer | F7: 8120
A8: 2000 | B8: =VLOOKUP(A8,Kontenplan!$A$4:$B$30,2) -> Rohstoffe | C8: 154000
A9: 2020 | B9: =VLOOKUP(A9,Kontenplan!$A$4:$B$30,2) -> Hilfsstoffe | C9: 12800
A10: 2030 | B10: =VLOOKUP(A10,Kontenplan!$A$4:$B$30,2) -> Betriebsstoffe | C10: 7800
A11: 2100 | B11: =VLOOKUP(A11,Kontenplan!$A$4:$B$30,2) -> Unfertige Erzeugnisse | C11: 17800
A12: 2200 | B12: =VLOOKUP(A12,Kontenplan!$A$4:$B$30,2) -> Fertige Erzeugnisse | C12: 32700
A13: 2400 | B13: =VLOOKUP(A13,Kontenplan!$A$4:$B$30,2) -> Forderungen a.L.u.L. | C13: 54800
A14: 2800 | B14: =VLOOKUP(A14,Kontenplan!$A$4:$B$30,2) -> Kreditinstitute/Bank | C14: 87900
A15: 2880 | B15: =VLOOKUP(A15,Kontenplan!$A$4:$B$30,2) -> Kasse | C15: 11200
C16: =SUM(C4:C15) -> 1206800 | F16: =C16 -> 1206800
A18: Aktiva | B18: 8010 Schlussbilanz | F18: Passiva
A19: 0500 | B19: =VLOOKUP(A19,Kontenplan!$A$4:$B$30,2) -> Grundstücke und Bauten | D19: 3000 | E19: =VLOOKUP(D19,Kontenplan!$A$4:$B$30,2) -> Eigenkapital | G19: =IF(H19="Aktiva = Passiva",1,2) -> 1 | H19: =IF(C31-F31=0,"Aktiva = Passiva",IF(C31-F31>0,"Aktiva > Passiva","Aktiva < Passiva")) -> Aktiva = Passiva
A20: 0700 | B20: =VLOOKUP(A20,Kontenplan!$A$4:$B$30,2) -> Technische Anlagen und Maschinen | D20: 4200 | E20: Verbindlichkeiten g. Kreditinstituten | H20: =CONCATENATE("Differenz = ",$C$31-$F$31) -> Differenz = 0
A21: 0800 | B21: =VLOOKUP(A21,Kontenplan!$A$4:$B$30,2) -> Beriebs- und Geschäftsausstattung | D21: 4400 | E21: =VLOOKUP(D21,Kontenplan!$A$4:$B$30,2) -> Verbindlichkeiten a.L.u.L.
A22: 0840 | B22: Fuhrpark | D22: 4800 | E22: =VLOOKUP(D22,Kontenplan!$A$4:$B$30,2) -> Umsatzsteuer
A23: 2000 | B23: =VLOOKUP(A23,Kontenplan!$A$4:$B$30,2) -> Rohstoffe
A24: 2020 | B24: =VLOOKUP(A24,Kontenplan!$A$4:$B$30,2) -> Hilfsstoffe
A25: 2030 | B25: =VLOOKUP(A25,Kontenplan!$A$4:$B$30,2) -> Betriebsstoffe
A26: 2100 | B26: =VLOOKUP(A26,Kontenplan!$A$4:$B$30,2) -> Unfertige Erzeugnisse
A27: 2200 | B27: =VLOOKUP(A27,Kontenplan!$A$4:$B$30,2) -> Fertige Erzeugnisse
A28: 2400 | B28: =VLOOKUP(A28,Kontenplan!$A$4:$B$30,2) -> Forderungen a.L.u.L.
A29: 2800 | B29: =VLOOKUP(A29,Kontenplan!$A$4:$B$30,2) -> Kreditinstitute/Bank
A30: 2880 | B30: =VLOOKUP(A30,Kontenplan!$A$4:$B$30,2) -> Kasse
C31: =SUM(C19:C30) -> 0 | F31: =SUM(F19:F22) -> 0

Sheet Kontenplan
B1: Kontenplan
A3: Nr. | B3: Konto
A4: 0500 | B4: Grundstücke und Bauten
A5: 0700 | B5: Technische Anlagen und Maschinen
A6: 0800 | B6: Beriebs- und Geschäftsausstattung
A7: 0840 | B7: Fuhrpark
A8: 2000 | B8: Rohstoffe
A9: 2001 | B9: Bezugskosten (Rohstoffe)
A10: 2002 | B10: Nachlässe (Rohstoffe)
A11: 2020 | B11: Hilfsstoffe
A12: 2030 | B12: Betriebsstoffe
A13: 2100 | B13: Unfertige Erzeugnisse
A14: 2200 | B14: Fertige Erzeugnisse
A15: 2400 | B15: Forderungen a.L.u.L.
A16: 2600 | B16: Vorsteuer
A17: 2800 | B17: Kreditinstitute/Bank
A18: 2880 | B18: Kasse
A19: 3000 | B19: Eigenkapital
A20: 4200 | B20: Verbindlichkeiten g. Kreditinstituten
A21: 4400 | B21: Verbindlichkeiten a.L.u.L.
A22: 4800 | B22: Umsatzsteuer
A23: 5000 | B23: Umsatzerlöse
A24: 5001 | B24: Erlösberichtigungen
A25: 5200 | B25: Bestandsveränderungen
A26: 6140 | B26: Frachten und Fremdlager
A27: 6160 | B27: Fremdinstandhaltung
A28: 8000 | B28: Eröffnungsbilanz
A29: 8010 | B29: Schlussbilanz
A30: 8020 | B30: Gewinn und Verlust
